{"text_format":"1","workbook":"xlsx","n_sheets":4,"sheets":["Test","ورقة2","ورقة3","Sheet1"],"not_rendered":{"charts":0,"images":0,"macros":1,"external_links":0,"defined_names":1,"comments":0,"pivot_tables":0},"unopened":[],"bounds":{"document_bytes":16777216,"sheet_cells":100000,"rows_first":2000,"rows_last":500,"rows_between":2000,"halvings":0,"cell_chars":16384,"cell_head_chars":4096},"cells_cut":0,"cells_raw":0,"read":"whole","date_system":"1900"}

{"sheet":"Test","index":0,"n_rows":24,"n_cols":13,"rows_kept":24,"cut":false,"hidden":false,"merged":[]}
[null,null,null,null,null,null,null,null,null,null,null,"ناجح ومنقول","مستجد"]
["باق",{"$f":"ورقة2!A1","v":"محمود1"},{"$f":"ورقة2!B1","v":"ناجح ومنقول"},null,null,null,null,null,null,null,null,"راسب وباق للإعادة","باق"]
["راسب وباق للإعادة",{"$f":"ورقة2!A2","v":"محمود2"},{"$f":"ورقة2!B2","v":"راسب وباق "}]
["راسب وباق للإعادة",{"$f":"ورقة2!A3","v":"محمود3"},{"$f":"ورقة2!B3","v":"ناجح ومنقول"}]
["باق",{"$f":"ورقة2!A4","v":"محمود4"},{"$f":"ورقة2!B4","v":"راسب وباق "}]
["باق",{"$f":"ورقة2!A5","v":"محمود5"},{"$f":"ورقة2!B5","v":"ناجح ومنقول"}]
["باق",{"$f":"ورقة2!A6","v":"محمود6"},{"$f":"ورقة2!B6","v":"راسب وباق "}]
["باق",{"$f":"ورقة2!A7","v":"محمود7"},{"$f":"ورقة2!B7","v":"ناجح ومنقول"}]
["باق",{"$f":"ورقة2!A8","v":"محمود8"},{"$f":"ورقة2!B8","v":"راسب وباق "}]
["باق",{"$f":"ورقة2!A9","v":"محمود9"},{"$f":"ورقة2!B9","v":"ناجح ومنقول"}]
["باق",{"$f":"ورقة2!A10","v":"محمود10"},{"$f":"ورقة2!B10","v":"راسب وباق "}]
["باق",{"$f":"ورقة2!A11","v":"محمود11"},{"$f":"ورقة2!B11","v":"ناجح ومنقول"}]
["باق",{"$f":"ورقة2!A12","v":"محمود12"},{"$f":"ورقة2!B12","v":"راسب وباق "}]
["باق",{"$f":"ورقة2!A13","v":"محمود13"},{"$f":"ورقة2!B13","v":"ناجح ومنقول"}]
["باق",{"$f":"ورقة2!A14","v":"محمود14"},{"$f":"ورقة2!B14","v":"راسب وباق "}]
["باق",{"$f":"ورقة2!A15","v":"محمود15"},{"$f":"ورقة2!B15","v":"ناجح ومنقول"}]
["باق",{"$f":"ورقة2!A16","v":"محمود16"},{"$f":"ورقة2!B16","v":"راسب وباق "}]
["باق",{"$f":"ورقة2!A17","v":"محمود17"},{"$f":"ورقة2!B17","v":"ناجح ومنقول"}]
["باق",{"$f":"ورقة2!A18","v":"محمود18"},{"$f":"ورقة2!B18","v":"راسب وباق "}]
["باق",{"$f":"ورقة2!A19","v":"محمود19"},{"$f":"ورقة2!B19","v":"ناجح ومنقول"}]
["باق",{"$f":"ورقة2!A20","v":"محمود20"},{"$f":"ورقة2!B20","v":"راسب وباق "}]
["باق",{"$f":"ورقة2!A21","v":"محمود21"},{"$f":"ورقة2!B21","v":"ناجح ومنقول"}]
["باق",{"$f":"ورقة2!A22","v":"محمود22"},{"$f":"ورقة2!B22","v":"راسب وباق "}]
["باق",{"$f":"ورقة2!A23","v":"محمود23"},{"$f":"ورقة2!B23","v":"ناجح ومنقول"}]

{"sheet":"ورقة2","index":1,"n_rows":29,"n_cols":2,"rows_kept":29,"cut":false,"hidden":false,"merged":[]}
["محمود1","ناجح ومنقول"]
["محمود2","راسب وباق "]
["محمود3","ناجح ومنقول"]
["محمود4","راسب وباق "]
["محمود5","ناجح ومنقول"]
["محمود6","راسب وباق "]
["محمود7","ناجح ومنقول"]
["محمود8","راسب وباق "]
["محمود9","ناجح ومنقول"]
["محمود10","راسب وباق "]
["محمود11","ناجح ومنقول"]
["محمود12","راسب وباق "]
["محمود13","ناجح ومنقول"]
["محمود14","راسب وباق "]
["محمود15","ناجح ومنقول"]
["محمود16","راسب وباق "]
["محمود17","ناجح ومنقول"]
["محمود18","راسب وباق "]
["محمود19","ناجح ومنقول"]
["محمود20","راسب وباق "]
["محمود21","ناجح ومنقول"]
["محمود22","راسب وباق "]
["محمود23","ناجح ومنقول"]
["محمود24","راسب وباق "]
["محمود25","ناجح ومنقول"]
["محمود26","راسب وباق "]
["محمود27","ناجح ومنقول"]
["محمود28","راسب وباق "]
["محمود29","ناجح ومنقول"]

{"sheet":"ورقة3","index":2,"n_rows":0,"n_cols":0,"rows_kept":0,"cut":false,"hidden":false,"merged":[]}

{"sheet":"Sheet1","index":3,"n_rows":0,"n_cols":0,"rows_kept":0,"cut":false,"hidden":false,"merged":[]}